fUSD/lending_fUSD_20240719
["ID","MTS","AMOUNT","RATE_DAILY","PERIOD"]
[332629404,1721374294026,-7579.61,0.00033013,14]
[332629405,1721374294036,-2671.8,0.00033013,14]
[332629406,1721374294046,-500.0,0.00033013,14]
[332629407,1721374294056,-1458.44,0.00033013,14]
[332629408,1721374294066,-3379.93,0.00033013,14]
[332629409,1721374294075,-850.9,0.00033013,14]
[332629410,1721374294085,-1778.9,0.00033013,14]
[332629411,1721374294096,-782.77,0.00033013,14]
[332629412,1721374294105,-983.6,0.00033013,14]
[332629413,1721374294116,-2276.75,0.00033013,14]
[332629414,1721374294125,-2517.04,0.00033013,14]
[332629415,1721374294136,-1306.08,0.00033013,14]
[332629416,1721374294145,-528.52,0.00033013,14]
[332629417,1721374294157,-500.0,0.00033013,14]
[332629418,1721374294167,-500.0,0.00033013,14]
[332629419,1721374294176,-612.81,0.00033013,14]
[332629420,1721374294185,-2573.03,0.00033013,14]
[332629421,1721374294195,-500.0,0.00033013,14]
[332629422,1721374294204,-500.0,0.00033013,14]
[332629423,1721374294213,-1623.35,0.00033013,14]
[332629424,1721374294222,-662.31,0.00033013,14]
[332629425,1721374294232,-944.06,0.00033013,14]
[332629426,1721374294243,-4158.79,0.00033013,14]
[332629427,1721374294252,-500.0,0.00033013,14]
[332629428,1721374294261,-500.0,0.00033013,14]
[332629429,1721374294270,-2052.86,0.00033013,14]
[332629430,1721374294280,-823.61,0.00033013,14]
[332629431,1721374294289,-4173.55,0.00033013,14]
[332629432,1721374294299,-3312.59,0.00033013,14]
[332629433,1721374294308,-500.0,0.00033013,14]
[332629434,1721374294317,-500.0,0.00033013,14]
[332629435,1721374294326,-2591.99,0.00033013,14]
[332629436,1721374294335,-500.0,0.00033013,14]
[332629437,1721374294344,-500.0,0.00033013,14]
[332629438,1721374294353,-1670.33,0.00033013,14]
[332629439,1721374294364,-1110.3,0.00033013,14]
[332629440,1721374294373,-3295.96,0.00033013,14]
[332629441,1721374294382,-3203.29,0.00033013,14]
[332629442,1721374294391,-12713.43,0.00033013,14]
[332629443,1721374294401,-500.0,0.00033013,14]
[332629444,1721374294410,-9922.87,0.00033013,14]
[332629445,1721374294419,-12334.5,0.00033013,14]
[332629446,1721374294429,-1634.46,0.00033013,14]
[332629447,1721374294438,-2349.36,0.00033013,14]
[332629448,1721374294453,-1715.39,0.00033013,14]
[332629449,1721374294463,-275.0,0.00033013,14]
[332629450,1721374294473,-2218.75,0.00033013,14]
[332629451,1721374294483,-1842.31,0.00033013,14]
[332629452,1721374294492,-28938.05,0.00033013,14]
[332629453,1721374294502,-579.83,0.00033013,14]
[332629454,1721374294512,-500.0,0.00033013,14]
[332629455,1721374294522,-714.02,0.00033013,14]
[332629456,1721374294532,-2574.56,0.00033013,14]
[332629457,1721374294541,-6670.15,0.00033013,14]
[332629458,1721374294551,-9010.61,0.00033013,14]
[332629459,1721374294561,-500.0,0.00033013,14]
[332629460,1721374294571,-1645.9,0.00033013,14]
[332629461,1721374294581,-951.45,0.00033013,14]
[332629462,1721374294591,-1951.67,0.00033013,14]
[332629463,1721374294601,-500.0,0.00033013,14]
[332629464,1721374294611,-1689.61,0.00033013,14]
[332629465,1721374294622,-500.0,0.00033013,14]
[332629466,1721374294631,-7708.62,0.00033013,14]
[332629467,1721374294641,-5729.14,0.00033013,14]
[332629468,1721374294651,-1322.64,0.00033013,14]
[332629469,1721374294660,-1063.5,0.00033013,14]
[332629470,1721374294670,-1362.93,0.00033013,14]
[332629471,1721374294679,-1299.48,0.00033013,14]
[332629472,1721374294689,-924.96,0.00033013,14]
[332629473,1721374294699,-12312.14,0.00033013,14]
[332629474,1721374294708,-1762.71,0.00033013,14]
[332629475,1721374294718,-7146.83,0.00033013,14]
[332629476,1721374294727,-500.0,0.00033013,14]
[332629477,1721374294738,-977.45,0.00033013,14]
[332629478,1721374294747,-2889.83,0.00033013,14]
[332629479,1721374294758,-500.0,0.00033013,14]
[332629480,1721374294767,-579.71,0.00033013,14]
[332629481,1721374294778,-4396.85,0.00033013,14]
[332629482,1721374294788,-500.0,0.00033013,2]
[332629483,1721374294797,-7179.59,0.00033013,14]
[332629484,1721374294807,-502.88,0.00033013,14]
[332629485,1721374294817,-19689.3,0.00033013,14]
[332629486,1721374294829,-500.0,0.00033013,14]
[332629487,1721374294840,-500.0,0.00033013,14]
[332629488,1721374294850,-1149.54,0.00033013,14]
[332629489,1721374294861,-3000.95,0.00033013,14]
[332629490,1721374294871,-12544.8,0.00033013,14]
[332629491,1721374294881,-3150.65,0.00033013,14]
[332629492,1721374294893,-500.0,0.00033013,14]
[332629493,1721374294904,-2369.19,0.00033013,14]
[332629494,1721374294914,-1659.47,0.00033013,14]
[332629495,1721374294924,-500.0,0.00033013,14]
[332629496,1721374294936,-871.86,0.00033013,14]
[332629497,1721374294947,-1257.98,0.00033013,14]
[332629498,1721374294958,-500.0,0.00033013,14]
[332629499,1721374294969,-500.0,0.00033013,14]
[332629500,1721374294979,-29295.08543752,0.00033013,14]
[332629501,1721374296066,-359.33794408,0.00033013,14]
[332629502,1721374296079,-404.4192757,0.00033013,14]
[332629503,1721374296091,-345.66,0.00033013,14]
[332629504,1721374296102,-2517.88620001,0.00033013,14]
[332629505,1721374296125,-438.217861,0.00032876,7]
[332629506,1721374296135,-769.46991087,0.00033013,14]
[332629507,1721374296146,-174.12123182,0.00033013,14]
[332629508,1721374296156,-2554.25,0.00033013,14]
[332629509,1721374296166,-585.26,0.00033013,14]
[332629510,1721374296179,-500.0,0.00033013,14]
[332629511,1721374296189,-5677.46876818,0.00033013,14]
[332629512,1721374296201,-855.45000001,0.00033013,14]
[332629513,1721374296212,-926.66902096,0.00033013,14]
[332629514,1721374296226,-1033.59720923,0.00033013,14]
[332629515,1721374296237,-7546.61500162,0.00033013,14]
[332629516,1721374296248,-684.81,0.00033013,14]
[332629517,1721374296257,-500.0,0.00033013,14]
[332629518,1721374296267,-5448.92,0.00033013,14]
[332629519,1721374296277,-500.0,0.00033013,14]
[332629520,1721374296286,-7767.51,0.00033013,14]
[332629521,1721374296296,-2290.4,0.00033013,14]
[332629522,1721374296306,-500.0,0.00033013,14]
[332629523,1721374296315,-4546.82,0.00033013,14]
[332629524,1721374296325,-15549.95,0.00033013,14]
[332629525,1721374296334,-1115.03,0.00033013,14]
[332629526,1721374296345,-1610.24,0.00033013,14]
[332629527,1721374296355,-500.0,0.00033013,14]
[332629528,1721374296367,-713.98,0.00033013,14]
[332629529,1721374296388,-846.65,0.00033013,14]
[332629530,1721374296398,-500.0,0.00033013,14]
[332629531,1721374296407,-2566.11,0.00033013,14]
[332629532,1721374296417,-748.23,0.00033013,14]
[332629533,1721374296427,-3397.09008523,0.00033013,14]
[332629534,1721374296444,-3976.96991477,0.00033013,14]
[332629535,1721374296454,-6568.13705232,0.00033013,14]
[332629536,1721374296488,-334.156083,0.00032,7]
[332629537,1721374296498,-483.66576004,0.00033013,14]
[332629538,1721374296510,-3337.46412,0.00033013,14]
[332629539,1721374296522,-2444.01306764,0.00033013,14]
[332629540,1721374296532,-504.43,0.00033013,14]
[332629541,1721374296542,-2320.73,0.00033013,14]
[332629542,1721374296551,-301.28147204,0.00033013,14]
[332629543,1721374296563,-276.90558802,0.00033013,14]
[332629544,1721374296575,-4506.06258621,0.00033013,14]
[332629545,1721374296587,-1437.56601913,0.00033013,14]
[332629595,1721375431999,-653.26372546,0.00013109,2]
[332629596,1721375432013,-1512.37427454,0.00013109,2]
[332629597,1721375432023,-588.64260855,0.00013698,2]
[332629598,1721375432033,-647.71813835,0.00013698,2]
[332629599,1721375432042,-463.35873498,0.00013698,2]
[332629600,1721375432054,-211.89,0.00013699,2]
[332629601,1721375432064,-300.0,0.0001372,2]
[332629602,1721375432073,-265.02858549,0.0001372,2]
[332629603,1721375432083,-227.43774807,0.00013799,2]
[332629604,1721375432092,-1007.58617229,0.0001389,2]
[332629605,1721375432103,-365.37672766,0.0001389,2]
[332629606,1721375432115,-466.08860005,0.0001389,2]
[332629607,1721375432124,-150.0,0.00014986,2]
[332629608,1721375432133,-150.0,0.00015,2]
[332629609,1721375432143,-499.99,0.00015,2]
[332629610,1721375432152,-54.07179062,0.00017,2]
[332629611,1721375432163,-145.92820938,0.00017,2]
[332629612,1721375432173,-300.0,0.00017299,2]
[332629613,1721375432182,-635.0,0.000173,2]
[332629614,1721375432191,-420.0,0.00018889,2]
[332629615,1721375432201,-250.0,0.00019,2]
[332629616,1721375432210,-529.72789881,0.00020109,2]
[332629617,1721375432220,-500.0,0.00020831,2]
[332629618,1721375432229,-300.0,0.00021,2]
[332629619,1721375432239,-154.4,0.00021644,2]
[332629620,1721375432249,-157.07,0.00021644,2]
[332629621,1721375432264,-398.06,0.00021918,2]
[332629622,1721375432273,-350.0,0.00023,2]
[332629623,1721375432282,-250.0,0.00024124,2]
[332629624,1721375432291,-155.0,0.00024124,2]
[332629625,1721375432300,-582.22,0.00024639,2]
[332629626,1721375432310,-171.0,0.00024703,2]
[332629627,1721375432319,-400.0,0.00025,2]
[332629628,1721375432329,-225.0,0.000252,2]
[332629629,1721375432338,-10525.79135321,0.0002536,2]
[332629630,1721375432349,-468.17,0.0002584,2]
[332629631,1721375432359,-250.0,0.00026163,2]
[332629632,1721375432370,-4859.49,0.00026479,2]
[332629634,1721375432381,-2885.8,0.00026501,2]
[332629636,1721375432391,-250.0,0.00026561,2]
[332629638,1721375432400,-500.0,0.00026574,2]
[332629640,1721375432409,-778.39,0.00026654,2]
[332629642,1721375432419,-7289.30912784,0.00026779,2]
[332629644,1721375432428,-566.73811132,0.00026788,2]
[332629646,1721375432438,-500.0,0.0002679,2]
[332629648,1721375432448,-200.0,0.0002679,2]
[332629650,1721375432457,-528.94058084,0.00026828,2]
[332629652,1721375432467,-1927.92209274,0.00026828,2]
[332629654,1721375432477,-308.76258383,0.00026828,2]
[332629656,1721375432486,-582.22,0.00026903,2]
[332629658,1721375432495,-3115.53988677,0.00026967,2]
[332629660,1721375432508,-295.27992917,0.00026967,2]
[332629662,1721375432517,-2370.09968543,0.00026967,2]
[332629664,1721375432527,-450.0,0.00027,2]
[332629666,1721375432536,-166.3,0.00027455,120]
[332629668,1721375432546,-200.0,0.00027594,2]
[332629670,1721375432556,-500.0,0.0002767,2]
[332629672,1721375432565,-304.8995852,0.00027999,2]
[332629674,1721375432575,-178.61,0.00028042,2]
[332629676,1721375432585,-157.65036385,0.00028131,2]
[332629678,1721375432595,-354.38825827,0.00028139,2]
[332629680,1721375432604,-354.38825827,0.00028161,2]
[332629682,1721375432614,-354.38825827,0.00028189,2]
[332629684,1721375432623,-500.0,0.00028218,2]
[332629686,1721375432632,-800.0,0.00028218,2]
[332629688,1721375432642,-500.0,0.00028218,2]
[332629690,1721375432652,-700.0,0.00028218,2]
[332629692,1721375432661,-152.02793623,0.00028255,2]
[332629694,1721375432670,-151.29977923,0.00028378,2]
[332629696,1721375432679,-152.02793623,0.0002839,2]
[332629698,1721375432689,-155.28078089,0.00028394,2]
[332629700,1721375432698,-151.29977923,0.00028541,2]
[332629702,1721375432708,-151.24439154,0.00028692,2]
[332629704,1721375432717,-155.30425096,0.00028754,2]
[332629706,1721375432726,-1000.0,0.00028765,2]
[332629708,1721375432736,-800.0,0.00028766,2]
[332629710,1721375432745,-700.0,0.00028766,2]
[332629712,1721375432759,-379.73372352,0.00028766,2]
[332629714,1721375432768,-152.38095238,0.00028774,2]
[332629716,1721375432778,-150.97699059,0.00028816,2]
[332629718,1721375432788,-155.28078089,0.00028885,2]
[332629720,1721375432798,-354.38825827,0.0002898,2]
[332629722,1721375432807,-500.0,0.00029,2]
[332629724,1721375432817,-155.28078089,0.00029065,2]
[332629726,1721375432827,-151.29977923,0.00029121,2]
[332629728,1721375432836,-582.22,0.00029167,2]
[332629730,1721375432848,-152.64990468,0.00029177,2]
[332629732,1721375432859,-354.38825827,0.00029183,2]
[332629734,1721375432869,-179.9,0.00029213,2]
[332629736,1721375432879,-151.29236806,0.00029282,2]
[332629738,1721375432889,-800.0,0.00029314,2]
[332629740,1721375432899,-700.0,0.00029314,2]
[332629742,1721375432909,-500.0,0.00029314,2]
[332629743,1721375432919,-500.0,0.00029314,2]
[332629744,1721375432929,-354.38825827,0.00029335,2]
[332629745,1721375432939,-155.37111201,0.0002941,2]
[332629746,1721375432949,-152.64990468,0.00029428,2]
[332629747,1721375432958,-151.96775162,0.00029436,2]
[332629748,1721375432969,-155.30425096,0.00029622,2]
[332629749,1721375432979,-151.29977923,0.00029795,2]
[332629750,1721375432992,-157.65036385,0.000298,2]
[332629751,1721375433002,-161.83553437,0.00029801,2]
[332629752,1721375433013,-500.0,0.0002981,2]
[332629753,1721375433023,-207.90524799,0.00029812,2]
[332629754,1721375433033,-800.0,0.00029862,2]
[332629755,1721375433043,-700.0,0.00029862,2]
[332629756,1721375433053,-152.02793623,0.00029901,2]
[332629757,1721375433063,-152.20150663,0.00029913,2]
[332629758,1721375433074,-151.96775162,0.00029934,2]
[332629759,1721375433084,-1000.0,0.0003,5]
[332629760,1721375433093,-1000.0,0.0003,5]
[332629761,1721375433103,-1000.0,0.0003,5]
[332629762,1721375433113,-1000.0,0.0003,5]
[332629763,1721375433123,-1000.0,0.0003,5]
[332629764,1721375433133,-1000.0,0.0003,5]
[332629765,1721375433144,-1000.0,0.0003,5]
[332629766,1721375433154,-1000.0,0.0003,5]
[332629767,1721375433164,-1000.0,0.0003,5]
[332629768,1721375433174,-354.38825827,0.00030029,7]
[332629769,1721375433184,-207.90524799,0.00030157,7]
[332629770,1721375433194,-166.66666666,0.00030279,7]
[332629771,1721375433204,-150.0,0.00030282,2]
[332629772,1721375433214,-800.0,0.0003041,10]
[332629773,1721375433224,-700.0,0.0003041,10]
[332629774,1721375433233,-500.0,0.0003041,10]
[332629775,1721375433243,-500.0,0.0003041,10]
[332629776,1721375433257,-155.28078089,0.00030426,7]
[332629777,1721375433266,-155.30425096,0.00030561,7]
[332629778,1721375433276,-155.28078089,0.00030721,7]
[332629779,1721375433285,-207.90524799,0.00030854,7]
[332629780,1721375433294,-157.65036385,0.00030856,7]
[332629781,1721375433304,-354.38825827,0.00030866,7]
[332629782,1721375433313,-1000.0,0.00030888,2]
[332629783,1721375433323,-700.0,0.00030958,10]
[332629784,1721375433332,-166.66666668,0.00030982,7]
[332629785,1721375433342,-550.0,0.00031,2]
[332629786,1721375433352,-151.29977923,0.00031039,7]
[332629787,1721375433362,-200.0,0.00031043,2]
[332629788,1721375433372,-151.29977923,0.0003114,7]
[332629789,1721375433382,-150.0,0.00031282,2]
[332629790,1721375433392,-354.38825827,0.00031291,7]
[332629791,1721375433401,-152.38095238,0.00031293,7]
[332629792,1721375433410,-582.22,0.00031431,2]
[332629793,1721375433420,-152.20150663,0.00031435,7]
[332629794,1721375433430,-800.0,0.00031506,10]
[332629795,1721375433441,-500.0,0.00031506,10]
[332629796,1721375433451,-500.0,0.00031506,10]
[332629797,1721375433461,-152.64990468,0.00031554,7]
[332629798,1721375433471,-152.64990468,0.00031568,7]
[332629799,1721375433481,-578.0,0.00031579,5]
[332629800,1721375433491,-354.38825827,0.00031585,7]
[332629801,1721375433501,-157.65036385,0.00031609,7]
[332629802,1721375433515,-151.29977923,0.0003163,7]
[332629803,1721375433525,-152.02793623,0.00031647,7]
[332629804,1721375433537,-655.7473,0.00031785,2]
[332629805,1721375433547,-354.38825827,0.0003183,7]
[332629806,1721375433558,-207.90524799,0.0003188,7]
[332629807,1721375433570,-700.0,0.00032054,10]
[332629808,1721375433580,-157.65036385,0.00032056,7]
[332629809,1721375433590,-151.96775162,0.00032117,7]
[332629810,1721375433599,-152.38095238,0.000322,7]
[332629811,1721375433609,-2548.5393,0.00032256,2]
[332629812,1721375433618,-1000.0,0.00032256,2]
[332629813,1721375433628,-150.0,0.00032282,2]
[332629814,1721375433638,-152.20150663,0.0003231,7]
[332629815,1721375433648,-207.90524799,0.0003231,7]
[332629816,1721375433658,-152.02793623,0.0003233,7]
[332629817,1721375433668,-936.80748018,0.00032354,120]
[332629818,1721375433678,-152.28968641,0.00032368,7]
[332629819,1721375433688,-151.96775162,0.00032407,7]
[332629820,1721375433698,-354.38825827,0.00032437,7]
[332629821,1721375433708,-155.28078089,0.00032472,7]
[332629822,1721375433718,-1081.48,0.00032488,2]
[332629823,1721375433729,-300.94,0.00032488,2]
[332629824,1721375433739,-327.95,0.00032488,2]
[332629825,1721375433749,-336.4,0.00032488,2]
[332629826,1721375433763,-358.67,0.00032488,2]
[332629827,1721375433773,-150.0,0.00032488,2]
[332629828,1721375433783,-150.0,0.00032488,2]
[332629829,1721375433794,-151.65,0.00032488,2]
[332629830,1721375433804,-150.0,0.00032488,2]
[332629831,1721375433814,-150.0,0.00032488,2]
[332629832,1721375433824,-150.0,0.00032488,2]
[332629833,1721375433835,-4000.0,0.000325,2]
[332629834,1721375433844,-207.90524799,0.00032504,7]
[332629835,1721375433854,-3401.3234,0.00032583,2]
[332629836,1721375433864,-207.90524799,0.00032584,7]
[332629837,1721375433874,-800.0,0.00032602,10]
[332629838,1721375433884,-286.15299912,0.00032602,10]
[332629839,1721375433893,-500.0,0.00032602,10]
[332629840,1721375433903,-152.00057682,0.00032613,15]
[332629841,1721375433912,-410.00161868,0.00032613,15]
[332629842,1721375433923,-73223.07181681,0.0003269,2]
[332629843,1721375433932,-7500.0,0.00032713,2]
[332629844,1721375433942,-160.8639571,0.00032713,2]
[332629845,1721375433952,-500.0,0.00032748,2]
[332629846,1721375433961,-200.0,0.00032748,2]
[332629847,1721375433971,-410.00161868,0.00032753,15]
[332629848,1721375433982,-150.0,0.00032764,2]
[332629849,1721375433995,-1517.6786,0.00032777,2]
[332629850,1721375434008,-1323.0,0.000328,21]
[332629851,1721375434018,-39550.8715,0.00032813,2]
[332629852,1721375434028,-100000.0,0.00032813,2]
[332629853,1721375434039,-1000.0,0.00032813,2]
[332629854,1721375434049,-151.29977923,0.00032819,7]
[332629855,1721375434059,-2000.0,0.00032848,2]
[332629856,1721375434070,-150.0,0.00032851,2]
[332629857,1721375434081,-155.0000007,0.00032865,4]
[332629858,1721375434091,-156.10991695,0.00032874,4]
[332629859,1721375434100,-2500.0,0.00032876,3]
[332629860,1721375434110,-2668.54,0.00032876,14]
[332629861,1721375434119,-1281.69,0.00032876,14]
[332629862,1721375434129,-279.39170663,0.00032876,14]
[332629863,1721375434139,-1192.05,0.00032876,14]
[332629864,1721375434150,-500.0,0.00032876,7]
[332629865,1721375434160,-1140.23,0.00032876,14]
[332629866,1721375434171,-500.0,0.00032876,14]
[332629867,1721375434181,-2170.4,0.00032876,14]
[332629868,1721375434191,-200.0,0.00032876,7]
[332629869,1721375434200,-508.54,0.00032876,14]
[332629870,1721375434210,-273.06,0.00032876,2]
[332629871,1721375434221,-1231.05,0.00032876,14]
[332629872,1721375434232,-1193.07,0.00032876,30]
[332629873,1721375434242,-1507.51,0.00032876,2]
[332629874,1721375434252,-499.6487,0.00032876,2]
[332629875,1721375434267,-508.48566698,0.00032876,14]
[332629876,1721375434277,-410.00161868,0.00032893,15]
[332629877,1721375434287,-12943.1390177,0.00032903,5]
[332629878,1721375434297,-178.58446462,0.00032912,6]
[332629879,1721375434307,-500.0,0.00032913,2]
[332629880,1721375434317,-40261.10107426,0.00032913,2]
[332629881,1721375434331,-103219.59368566,0.00032913,2]
[332629882,1721375434343,-4833.61660523,0.00032913,2]
[332629883,1721375434367,-320.22901395,0.00032913,2]
[332629884,1721375434379,-442.695,0.00032913,2]
[332629885,1721375434395,-95922.7646209,0.00032913,2]
[332629886,1721375434404,-159.34972632,0.00032913,4]
[332629887,1721375434414,-207.61030166,0.00032913,4]
[332629888,1721375434424,-150.28115843,0.00032913,2]
[332629889,1721375434434,-181.44669515,0.00032913,4]
[332629890,1721375434444,-2588.62780353,0.0003298,5]
[332629891,1721375434453,-2588.62780353,0.0003299,5]
[332629892,1721375434463,-2000.0,0.00033,9]
[332629893,1721375434472,-1000.0,0.00033,5]
[332629894,1721375434482,-258.0,0.00033,6]
[332629895,1721375434491,-517.0,0.00033,6]
[332629896,1721375434501,-517.0,0.00033,6]
[332629897,1721375434517,-1000.0,0.00033,5]
[332629898,1721375434527,-1000.0,0.00033,5]
[332629899,1721375434536,-1000.0,0.00033,5]
[332629900,1721375434547,-1000.0,0.00033,5]
[332629901,1721375434556,-1000.0,0.00033,5]
[332629902,1721375434566,-1000.0,0.00033,5]
[332629903,1721375434575,-1000.0,0.00033,5]
[332629904,1721375434585,-1000.0,0.00033,5]
[332629905,1721375434594,-1000.0,0.00033,2]
[332629906,1721375434604,-1000.0,0.00033,2]
[332629907,1721375434614,-1000.0,0.00033,2]
[332629908,1721375434623,-1000.0,0.00033,2]
[332629909,1721375434633,-1000.0,0.00033,2]
[332629910,1721375434643,-1000.0,0.00033,2]
[332629911,1721375434653,-1000.0,0.00033,2]
[332629912,1721375434662,-1000.0,0.00033,2]
[332629913,1721375434672,-1000.0,0.00033,2]
[332629914,1721375434681,-1000.0,0.00033,2]
[332629915,1721375434690,-600.0,0.00033,2]
[332629916,1721375434699,-150.0,0.00033,14]
[332629917,1721375434709,-683.4253,0.00033,2]
[332629918,1721375434719,-683.4253,0.00033,2]
[332629919,1721375434728,-245.86060635,0.00033002,2]
[332629920,1721375434738,-2588.62780353,0.00033002,5]
[332629921,1721375434747,-80247.4619094,0.00033003,5]
[332629922,1721375434759,-150.0,0.00033004,2]
[332629923,1721375434768,-2872.25423344,0.00033008,30]
[332629924,1721375434778,-182.89688733,0.00033012,2]
[332629925,1721375434787,-1830.11522111,0.00033012,2]
[332629926,1721375434796,-1111.15611811,0.00033012,2]
[332629927,1721375434806,-209.63108427,0.00033013,2]
[332629928,1721375434816,-240.27740147,0.00033013,2]
[332629929,1721375434825,-2554.99337684,0.00033013,2]
[332629930,1721375434835,-11466.2043346,0.00033013,14]
[332629931,1721375434844,-1344.07,0.00033013,14]
[332629932,1721375434853,-500.0,0.00033013,14]
[332629933,1721375434862,-500.0,0.00033013,14]
[332629934,1721375434871,-6295.21,0.00033013,14]
[332629935,1721375434881,-500.0,0.00033013,14]
[332629936,1721375434890,-500.0,0.00033013,14]
[332629937,1721375434899,-13689.07,0.00033013,14]
[332629938,1721375434909,-4970.78,0.00033013,14]
[332629939,1721375434919,-2116.95,0.00033013,14]
[332629940,1721375434928,-2624.95,0.00033013,14]
[332629941,1721375434937,-500.0,0.00033013,14]
[332629942,1721375434947,-2812.54,0.00033013,14]
[332629943,1721375434956,-959.15,0.00033013,14]
[332629944,1721375434966,-1958.01,0.00033013,14]
[332629945,1721375434980,-3410.57,0.00033013,14]
[332629946,1721375434990,-543.11,0.00033013,14]
[332629947,1721375435000,-7256.02,0.00033013,14]
[332629948,1721375435012,-1843.94,0.00033013,14]
[332629949,1721375435021,-518.99,0.00033013,14]
[332629950,1721375435030,-9013.11,0.00033013,14]
[332629951,1721375435039,-500.0,0.00033013,14]
[332629952,1721375435048,-2361.69,0.00033013,14]
[332629953,1721375435058,-500.0,0.00033013,14]
[332629954,1721375435068,-2927.81,0.00033013,14]
[332629955,1721375435078,-5061.23,0.00033013,14]
[332629956,1721375435087,-7140.38,0.00033013,14]
[332629957,1721375435096,-500.0,0.00033013,14]
[332629958,1721375435105,-3936.33,0.00033013,14]
[332629959,1721375435115,-3548.25,0.00033013,14]
[332629960,1721375435125,-7123.89,0.00033013,14]
[332629961,1721375435134,-500.0,0.00033013,14]
[332629962,1721375435143,-1883.30993815,0.00033013,14]
[332629963,1721375435156,-535.40006185,0.00033013,14]
[332629964,1721375435166,-500.0,0.00033013,14]
[332629965,1721375435175,-720.78,0.00033013,14]
[332629966,1721375435185,-643.81993815,0.00033013,14]
[332629967,1721375435196,-455.45006185,0.00033013,14]
[332629968,1721375435206,-215.33688263,0.00033013,14]
[332629969,1721375435217,-494.28267779,0.00033013,14]
[332629970,1721375435228,-889.15149544,0.00033013,14]
[332629971,1721375435240,-5562.90894414,0.00033013,14]
[332629972,1721375435250,-500.0,0.00033013,14]
[332629973,1721375435262,-4343.92,0.00033013,14]
[332629974,1721375435272,-1065.22,0.00033013,14]
[332629975,1721375435282,-501.5159587,0.00033013,14]
[332629976,1721375435291,-1303.77857966,0.00033013,14]
[332629977,1721375435303,-3831.84142034,0.00033013,14]
[332629978,1721375435312,-500.0,0.00033013,14]
[332629979,1721375435322,-4238.91457966,0.00033013,14]
[332629980,1721375435333,-9750.41485149,0.00033013,14]
[332629981,1721375435345,-2169.01056885,0.00033013,14]
[332629982,1721375435354,-500.0,0.00033013,14]
[332629983,1721375435364,-500.0,0.00033013,14]
[332629984,1721375435374,-1774.82788369,0.00033013,14]
[332629985,1721375435385,-383.17211631,0.00033013,14]
[332629986,1721375435394,-66.86495669,0.00033013,14]
[332629987,1721375435409,-433.13504331,0.00033013,14]
[332629988,1721375435418,-843.32495669,0.00033013,14]
[332629989,1721375435430,-921.35504331,0.00033013,14]
[332629990,1721375435440,-845.57,0.00033013,14]
[332629991,1721375435449,-500.0,0.00033013,14]
[332629992,1721375435459,-500.0,0.00033013,14]
[332629993,1721375435725,-5083.59,0.00033013,14]
[332629994,1721375435736,-921.29,0.00033013,14]
[332629995,1721375435746,-9737.63,0.00033013,14]
[332629996,1721375435756,-500.0,0.00033013,14]
[332629997,1721375435770,-500.0,0.00033013,14]
[332629998,1721375435779,-2072.08,0.00033013,14]
[332629999,1721375435789,-500.0,0.00033013,14]
[332630000,1721375435798,-1561.89,0.00033013,14]
[332630001,1721375435807,-4838.92,0.00033013,14]
[332630002,1721375435817,-500.0,0.00033013,14]
[332630003,1721375435826,-6611.96,0.00033013,14]
[332630004,1721375435836,-1372.25,0.00033013,14]
[332630005,1721375435846,-500.0,0.00033013,2]
[332630006,1721375435855,-500.0,0.00033013,14]
[332630007,1721375435864,-719.18,0.00033013,14]